[Event "BL 2024-25"]
[Site "Austria"]
[Date "2024.10.09"]
[Round "1.7"]
[White "Kadric, Denis"]
[Black "Kozak, Adam"]
[Result "1/2-1/2"]
[ECO "C54"]
[WhiteElo "2558"]
[BlackElo "2600"]
[Annotator "TA"]
[PlyCount "86"]
[EventDate "2024.08.28"]
[EventType "team-tourn"]
[EventCountry "AUT"]
[SourceTitle "playchess.com"]
[Source "ChessBase"]
[SourceQuality "1"]
[WhiteTeam "Pinggau-Friedberg"]
[BlackTeam "Fuerstenfeld-Hartberg"]
[TimeControl "40/5400+30:1800+30"]

{[%evp 12,86,23,8,18,24,28,13,16,17,22,16,17,9,13,5,14,11,13,14,18,24,9,0,22,1,7,0,10,16,27,5,39,8,1,0,20,12,15,0,0,0,0,0,0,0,0,-9,0,0,0,0,0,0,0,0,0,0,9,0,17,0,0,0,0,0,0,0,0,0,0,0,0,0,0,0,0]} 1. e4 {[%emt 0:00:03]} e5 {[%emt 0:00:09]} 2. Nf3 {[%emt 0:00:05]} Nc6 {[%emt 0:00:10]} 3. Bc4 {[%emt 0:00:03]} Bc5 {[%emt 0:00:09]} 4. c3 {[%emt 0:00:12]} Nf6 {[%emt 0:00:09]} 5. d3 {[%emt 0:00:01]} h6 {[%emt 0:00:12]} 6. O-O {[%emt 0:03:49]} d6 {[%emt 0:00:43]} 7. Nbd2 {[%emt 0:00:51]} (7. b4 $5 Bb6 $8 8. a4 $11) 7... Bb6 {[%emt 0:02:49]} 8. a4 {[%emt 0:01:53]} a6 {[%emt 0:00:38]} 9. Bb3 {[%emt 0:00:39]} O-O {[%emt 0:00:45]} 10. Re1 {[%emt 0:01:02]} Be6 {[%emt 0:06:38]} 11. h3 {[%emt 0:00:47]} Bxb3 {[%emt 0:11:23]} 12. Qxb3 {[%emt 0:00:11]} Qd7 {[%emt 0:00:03]} 13. Nc4 {[%emt 0:09:37]} Ba7 {[%emt 0:00:59]} 14. a5 {[%emt 0:00:34]} (14. Qxb7 $2 Rfb8 $19) 14... Rfe8 {[%emt 0:03:04]} 15. Be3 {[%emt 0:00:21]} (15. Qxb7 $2 {perishes.} Reb8 $19) 15... Rab8 {[%emt 0:02:47]} 16. Bxa7 {[%emt 0:07:01]} Nxa7 {[%emt 0:00:10]} 17. Ncd2 {[%emt 0:05:33]} Qe6 {[%emt 0:08:51]} 18. Qc2 {[%emt 0:06:49]} (18. Qxe6 {simplifies} Rxe6 19. b4 Ree8 20. Nb3) 18... Nh5 {[%emt 0:04:12]} 19. d4 {[%emt 0:03:10]} Nf4 {[%emt 0:00:30]} 20. Kh2 {[%emt 0:01:08]} exd4 {[%emt 0:11:27]} 21. Nxd4 {[%emt 0:04:31]} Qf6 {[%emt 0:02:20]} 22. Re3 {[%emt 0:06:45]} Nc6 {[%emt 0:01:54] The position is equal.} 23. N2b3 {[%emt 0:04:18]} Nxd4 {[%emt 0:09:04]} 24. Nxd4 {[%emt 0:02:11]} Ne6 {[%emt 0:03:56]} 25. Nxe6 {[%emt 0:22:00]} Rxe6 {[%emt 0:00:23]} 26. g3 {[%emt 0:01:41]} Qg5 {[%emt 0:08:15]} 27. b4 {[%emt 0:03:54]} Rbe8 {[%emt 0:00:25][%cal Of7f5]} 28. Rae1 {[%emt 0:00:04]} Qb5 {[%emt 0:00:22]} 29. Qd2 {[%emt 0:00:16]} Qc6 {[%emt 0:06:01]} 30. Qd3 {[%emt 0:00:22]} Re5 {[%emt 0:00:43]} 31. R1e2 {[%emt 0:01:22]} Qb5 {[%emt 0:06:27]} 32. Qd4 {[%emt 0:04:28]} R5e6 {[%emt 0:00:50]} 33. Re1 {[%emt 0:00:32]} Rf6 {[%emt 0:04:38]} 34. Kg2 {[%emt 0:01:28]} Rfe6 {[%emt 0:02:51]} 35. R1e2 {[%emt 0:00:45]} Qc6 {[%emt 0:00:26]} 36. Kh2 {[%emt 0:00:21]} b6 {[%emt 0:00:38]} 37. e5 {[%emt 0:04:57]} dxe5 {[%emt 0:02:05]} 38. Rxe5 {[%emt 0:00:03]} Rxe5 {[%emt 0:00:09]} 39. Rxe5 {[%emt 0:00:04]} Rxe5 {[%emt 0:00:12]} 40. Qxe5 $11 {[%emt 0:00:02][%cal Ob4b5] KQ-KQ} f6 {[%emt 0:01:27]} 41. Qf5 {[%emt 0:33:07]} bxa5 {[%emt 0:01:44]} 42. Qxa5 {[%emt 0:00:00]} Qxc3 {[%emt 0:00:55]} 43. Qxa6 {[%emt 0:00:00]} Qxb4 {[%emt 0:01:06] A balanced but interesting game.   Weighted Error Value: White=0.05 (flawless) /Black=0.05 (flawless) .  Inaccurate:     	White=1     	Black=1      OK:         	White=11    	Black=17} 1/2-1/2

[Event "BL 2024-25"]
[Site "Austria"]
[Date "2024.10.09"]
[Round "1.8"]
[White "Berkes, Ferenc"]
[Black "Petrov, Nikita"]
[Result "1/2-1/2"]
[ECO "E14"]
[WhiteElo "2604"]
[BlackElo "2589"]
[Annotator "TA"]
[PlyCount "93"]
[EventDate "2024.08.28"]
[EventType "team-tourn"]
[EventCountry "AUT"]
[SourceTitle "playchess.com"]
[Source "ChessBase"]
[SourceQuality "1"]
[WhiteTeam "Fuerstenfeld-Hartberg"]
[BlackTeam "Pinggau-Friedberg"]
[TimeControl "40/5400+30:1800+30"]

{[%evp 15,93,0,0,4,0,-8,-3,-12,-5,-13,-16,-14,0,-6,16,-8,16,21,20,10,26,27,14,13,15,14,20,13,12,0,0,0,0,0,18,0,0,0,0,0,0,0,0,0,0,0,0,0,0,0,0,0,0,0,0,0,0,0,0,0,0,0,0,0,0,0,0,0,0,0,0,0,0,0,0,0,0,0,0,0]} 1. d4 {[%emt 0:00:04]} Nf6 {[%emt 0:00:13]} 2. Nf3 {[%emt 0:00:19]} d5 {[%emt 0:00:21]} 3. c4 {[%emt 0:00:09]} e6 {[%emt 0:00:12]} 4. e3 {[%emt 0:00:12]} b6 {[%emt 0:02:15]} 5. cxd5 {[%emt 0:00:38]} exd5 {[%emt 0:00:06]} 6. Bd3 {[%emt 0:00:12]} Bb7 {[%emt 0:02:28]} 7. O-O {[%emt 0:00:27]} Bd6 {[%emt 0:00:38]} 8. b3 {[%emt 0:00:25] E14: Queen's Indian: Classical Variation (4 e3).} Qe7 {[%emt 0:01:14]} 9. Nc3 {[%emt 0:00:12]} a6 {[%emt 0:01:14]} 10. Bb2 {[%emt 0:00:12]} Nbd7 {[%emt 0:00:49]} 11. Rc1 {[%emt 0:00:16]} Ne4 {[%emt 0:01:42]} 12. Rc2 {[%emt 0:03:42]} O-O {[%emt 0:02:18]} 13. Ne2 {[%emt 0:00:56]} Rfe8 {[%emt 0:05:19]} 14. Nf4 $146 {[%emt 0:01:53]} ({Predecessor:} 14. Ng3 g6 15. Qe2 f5 16. Rfc1 c5 17. Qf1 h6 18. Ne2 Kh7 19. Rd1 Qf7 20. Nc3 {1-0 Ehlvest,J (2613)-Zhigalko,S (2656) Vladimir Petrov Memorial op rapid 2013 (12)}) 14... Nf8 {[%emt 0:18:16]} 15. Re1 {[%emt 0:06:35]} Ng6 {[%emt 0:05:27]} 16. Nxg6 {[%emt 0:16:10]} hxg6 {[%emt 0:00:09]} 17. Ne5 {[%emt 0:00:31]} Qe6 {[%emt 0:06:43]} 18. Qg4 {[%emt 0:08:54]} Qxg4 {[%emt 0:01:43]} 19. Nxg4 {[%emt 0:01:17]} g5 {[%emt 0:08:41]} 20. f3 {[%emt 0:02:04]} Nf6 {[%emt 0:00:20]} 21. Ne5 {[%emt 0:16:42]} c5 {[%emt 0:02:42]} 22. a4 {[%emt 0:00:19]} cxd4 {[%emt 0:08:40]} 23. exd4 {[%emt 0:00:07]} Nd7 {[%emt 0:01:47]} 24. Rce2 {[%emt 0:22:36]} Bb4 {[%emt 0:06:29]} 25. Rd1 {[%emt 0:00:35]} Nf8 {[%emt 0:04:48]} 26. Rc2 {[%emt 0:00:46]} Rac8 {[%emt 0:01:11]} 27. Rdc1 {[%emt 0:02:51]} Rxc2 {[%emt 0:05:59]} 28. Rxc2 {[%emt 0:00:05]} Rc8 {[%emt 0:00:05]} 29. Rxc8 {[%emt 0:00:19]} Bxc8 {[%emt 0:00:04]} 30. Kf2 {[%emt 0:00:10]} Bd6 {[%emt 0:00:54]} 31. g3 {[%emt 0:00:43]} Ne6 {[%emt 0:03:04]} 32. Ng4 {[%emt 0:00:29]} f6 {[%emt 0:02:14]} 33. Ne3 {[%emt 0:00:50]} Nc7 {[%emt 0:00:24]} 34. Bc3 {[%emt 0:02:31]} a5 {[%emt 0:00:42]} 35. Bg6 {[%emt 0:01:35]} Kf8 {[%emt 0:00:46]} 36. Ke2 {[%emt 0:00:53]} Be6 {[%emt 0:01:51]} 37. Nf5 {[%emt 0:03:45]} Ba3 {[%emt 0:00:46]} 38. Ne3 {[%emt 0:00:43]} Bd6 {[%emt 0:00:23]} 39. Nf5 {[%emt 0:03:06]} Ba3 {[%emt 0:00:04]} 40. h4 {[%emt 0:00:36]} gxh4 {[%emt 0:00:54]} 41. Nxh4 {[%emt 0:33:00]} Bd7 {[%emt 0:34:11]} 42. Nf5 {[%emt 0:00:43]} Be8 {[%emt 0:00:00]} 43. Bxe8 {[%emt 0:00:00]} Nxe8 {[%emt 0:00:00]} 44. g4 {[%emt 0:00:00]} Kf7 {[%emt 0:00:00]} 45. Be1 {[%emt 0:00:00]} g6 {[%emt 0:00:00]} 46. Ne3 {[%emt 0:00:00]} Ke6 $1 {[%emt 0:00:00]} 47. Kd3 {[%emt 0:00:00]} 1/2-1/2

[Event "BL 2024-25"]
[Site "Austria"]
[Date "2024.10.09"]
[Round "1.9"]
[White "Erdos, Viktor"]
[Black "Samunenkov, Ihor"]
[Result "1-0"]
[ECO "B10"]
[WhiteElo "2538"]
[BlackElo "2533"]
[Annotator "TA"]
[PlyCount "67"]
[EventDate "2024.08.28"]
[EventType "team-tourn"]
[EventCountry "AUT"]
[SourceTitle "playchess.com"]
[Source "ChessBase"]
[SourceQuality "1"]
[WhiteTeam "Pinggau-Friedberg"]
[BlackTeam "Fuerstenfeld-Hartberg"]
[TimeControl "40/5400+30:1800+30"]

{[%evp 9,67,-13,0,-21,8,11,12,-8,4,3,8,4,18,18,25,25,27,24,6,12,19,0,0,0,25,0,24,18,47,31,77,72,67,58,81,61,91,81,149,155,160,161,160,128,186,183,397,380,404,397,737,789,805,718,847,781,861,845,842,821]} 1. e4 {[%emt 0:00:11]} c6 {[%emt 0:00:22]} 2. Nf3 {[%emt 0:00:07]} d5 {[%emt 0:00:14]} 3. d3 {[%emt 0:00:07]} dxe4 {[%emt 0:00:15]} 4. dxe4 {[%emt 0:00:04]} Qxd1+ {[%emt 0:00:10]} 5. Kxd1 {[%emt 0:00:05]} Nf6 {[%emt 0:00:11]} 6. Nbd2 {[%emt 0:00:12]} g6 {[%emt 0:00:39]} 7. Ne5 {[%emt 0:02:13]} Bh6 {[%emt 0:03:25]} 8. Bc4 {[%emt 0:07:15] Die Stellung ist ausgeglichen.} O-O {[%emt 0:09:20]} 9. Re1 {[%emt 0:00:41]} Nfd7 {[%emt 0:08:17]} 10. Nxd7 {[%emt 0:12:00]} Nxd7 {[%emt 0:00:13][%cal Bb8d7,Bd7e5,Be5g4,Bg4h2][%mdl 32]} 11. Nb3 {[%emt 0:00:14]} Bg7 {[%emt 0:08:00]} 12. c3 {[%emt 0:16:19]} Ne5 {[%emt 0:05:11]} 13. Bf1 {[%emt 0:00:05]} f5 {[%emt 0:05:11]} 14. f4 {[%emt 0:05:20]} Ng4 {[%emt 0:01:18]} 15. e5 {[%emt 0:01:36]} Nxh2 {[%emt 0:05:11]} 16. Bc4+ {[%emt 0:00:34]} Kh8 {[%emt 0:00:10]} 17. a4 {[%emt 0:02:51][%cal Ba2a4,Ba4a5,Ba5a6][%mdl 1056] Weiss hat Kompensation.} Ng4 {[%emt 0:20:50]} 18. a5 {[%emt 0:06:40]} e6 {[%emt 0:09:33]} 19. a6 {[%emt 0:31:13]} b6 {[%emt 0:13:53]} (19... b5 $14 20. Be2 g5) 20. Nd4 $36 {[%emt 0:00:11][%csl LRc6,LRe6][%mdl 2048] Läuft bei Weiss.} Re8 {[%emt 0:00:05]} 21. Nxc6 {[%emt 0:00:13] Weiß steht aktiver.} Bd7 {[%emt 0:00:10]} 22. Nd4 {[%emt 0:00:25]} Bf8 {[%emt 0:01:32]} 23. Ke2 {[%emt 0:03:54]} Bc5 {[%emt 0:02:36]} ({Besser ist} 23... Rac8 24. Bb5 Rc7) 24. Bb5 {[%emt 0:00:14]} Rad8 {[%emt 0:00:27]} 25. Bxd7 {[%emt 0:07:29]} Rxd7 {[%emt 0:00:06]} 26. Nb5 {[%emt 0:00:02]} Red8 {[%emt 0:04:15]} (26... h5 $16 27. Rd1 Rg7) 27. b4 $18 {[%emt 0:00:35]} Bf8 {[%emt 0:01:46] [#]} (27... Bf2 {ist wohl besser.} 28. Rf1 Bh4) 28. Ra2 $1 {[%emt 0:00:07][%cal Ba1a2,Ba2d2,Bd2d7][%mdl 32]} ({Nicht} 28. Nd4 Bxb4 29. Nxe6 Bxc3 30. Nxd8 Rxd8 $11) 28... g5 {[%emt 0:00:11] [#]} 29. Rd2 $1 {[%emt 0:01:07]} ({Lieber nicht} 29. fxg5 Rd5 30. Nxa7 Rxe5+ 31. Kf1 Nh2+ 32. Kf2 Ng4+ 33. Kf1 Nh2+ 34. Kf2 Ng4+ 35. Kf1 $11) 29... gxf4 $2 {[%emt 0:00:23]} (29... Rxd2+ 30. Bxd2 Bg7) 30. Rxd7 {[%emt 0:00:04] Weiß steht klar auf Gewinn.} Rxd7 {[%emt 0:00:05]} 31. Bxf4 {[%emt 0:00:04]} Rd8 {[%emt 0:01:13]} 32. Rd1 {[%emt 0:00:21]} Rc8 {[%emt 0:00:09]} 33. Rd7 {[%emt 0:00:27]} Rc4 {[%emt 0:00:08]} 34. g3 {[%emt 0:02:40] Gewichteter Fehlerwert: Weiß=0.04 (makellos) /Schwarz=0.33.  Fehler:       	---       	Schwarz=5     Ungenau:       	---       	Schwarz=3     OK:         	Weiß=13    	Schwarz=10    Bester:       	Weiß=5     	---        Stark:        	Weiß=2     	---} 1-0

[Event "BL 2024-25"]
[Site "Austria"]
[Date "2024.10.09"]
[Round "1.10"]
[White "Gschnitzer, Adrian"]
[Black "Sankalp Gupta"]
[Result "0-1"]
[ECO "B12"]
[WhiteElo "2449"]
[BlackElo "2534"]
[Annotator "TA"]
[PlyCount "86"]
[EventDate "2024.08.28"]
[EventType "team-tourn"]
[EventCountry "AUT"]
[SourceTitle "playchess.com"]
[Source "ChessBase"]
[SourceQuality "1"]
[WhiteTeam "Fuerstenfeld-Hartberg"]
[BlackTeam "Pinggau-Friedberg"]
[TimeControl "40/5400+30:1800+30"]

{[%evp 9,86,-10,-9,0,58,-42,7,18,45,50,79,87,65,68,53,52,78,70,73,70,89,77,93,99,86,67,160,126,127,123,292,25,47,51,110,16,33,25,125,114,119,110,123,-82,-93,-89,-90,-91,-95,-63,-78,-64,-72,-92,-103,-210,-212,-210,-200,-250,-127,-104,-82,-74,-65,-85,-77,-94,-91,-171,-172,-211,-212,-194,-193,-297,-201,-341,-335]} 1. e4 {[%emt 0:00:05][%cal Be2e4,Be4e5][%mdl 32]} c6 {[%emt 0:02:33]} 2. d4 {[%emt 0:00:09]} d5 {[%emt 0:00:04]} 3. e5 {[%emt 0:00:11]} c5 {[%emt 0:00:03]} 4. Nf3 {[%emt 0:00:29]} cxd4 {[%emt 0:00:05]} 5. Qxd4 {[%emt 0:00:22]} Nc6 {[%emt 0:00:07]} 6. Qf4 {[%emt 0:00:28]} f6 {[%emt 0:03:26]} (6... e6 $11) 7. h4 {[%emt 0:10:19]} (7. Bb5 $14) 7... fxe5 {[%emt 0:16:10]} (7... e6 $15 {is superior.}) 8. Nxe5 $11 {[%emt 0:00:31] The position is equal.} Nxe5 {[%emt 0:00:04]} 9. Qxe5 {[%emt 0:00:12] And now Nc3 would win.} Nf6 {[%emt 0:00:02]} 10. h5 {[%emt 0:10:17][%cal Bh4h5,Bh5h6][%mdl 32]} e6 {[%emt 0:13:41]} 11. h6 $1 {[%emt 0:04:24]} g6 {[%emt 0:04:51]} 12. Bg5 {[%emt 0:02:09]} Be7 {[%emt 0:01:11]} 13. Bb5+ {[%emt 0:03:34]} Kf7 {[%emt 0:00:02]} 14. Nc3 $36 {[%emt 0:08:51][%mdl 2048] White has some pressure.} Rf8 {[%emt 0:00:03]} 15. O-O-O {[%emt 0:03:07]} Kg8 {[%emt 0:01:06]} 16. Rhe1 {[%emt 0:17:22][%cal Oc3d5] Nxd5! is the strong threat.} Rf7 {[%emt 0:01:48]} 17. f4 {[%emt 0:05:14][%cal Of4f5]} Qb6 {[%emt 0:07:51] [#]} (17... Qf8 $14) 18. Be8 $1 {[%emt 0:05:55][%mdl 512]} Nxe8 {[%emt 0:01:49]} 19. Bxe7 {[%emt 0:00:31] Threatens to win with Ba3.} (19. Nxd5 $2 exd5 20. Bxe7 Qc6 21. Qxd5 Qxd5 22. Rxd5 Be6 $19 (22... Rxf4 $2 23. Rd8 $18)) 19... Bd7 $2 {[%emt 0:05:32] Black is weak on the dark squares} (19... Rxe7 $2 20. Nxd5 exd5 21. Qxe7 $18) (19... Qc7 $16) 20. Bg5 $2 {[%emt 0:03:50]} (20. f5 $1 $18 {[%cal Rf5g6] Black must now prevent fxg6.} Rxf5 21. Rf1) 20... Nd6 {[%emt 0:01:46]} 21. b3 {[%emt 0:01:53][%cal Of4f5] Repels Nc4} Rc8 {[%emt 0:00:34]} (21... Re8 $14) 22. Re2 {[%emt 0:07:27]} (22. f5 $1 $16 {[%cal Rf5e6]} Nxf5 23. g4) 22... Qc5 {[%emt 0:09:02]} 23. Rd3 {[%emt 0:03:29]} b5 {[%emt 0:07:17] [#]} (23... Re8 $11) 24. Be7 $1 $16 {[%emt 0:03:25][%mdl 512]} Rxe7 {[%emt 0:01:02] [#]} 25. Nxd5 $1 {[%emt 0:00:16][%mdl 512]} Rf7 {[%emt 0:00:07]} (25... exd5 $2 {loses.} 26. Qxe7 Nf5 27. Qxd7 $18) 26. b4 $2 {[%emt 0:01:23]} (26. Nf6+ $16 {is forced if you want to stay better.} Rxf6 27. Qxf6) 26... Qc4 $17 {[%emt 0:06:50]} 27. Nf6+ {[%emt 0:02:08] [#]} ({Not} 27. Ne3 $2 Qxd3 28. Rd2 Qa3+ 29. Kd1 Nc4 (29... Ne8 $2 30. Rd4 $19) 30. Nxc4 Rxc4 $19 (30... bxc4 $2 31. c3 $19)) 27... Rxf6 $1 {[%emt 0:00:05]} 28. Qxf6 {[%emt 0:00:13]} Ne8 {[%emt 0:00:05] Dodges Qg7+. Really sharp!} 29. Qd4 {[%emt 0:00:23]} Qxd4 {[%emt 0:01:22]} 30. Rxd4 {[%emt 0:00:01]} Nf6 {[%emt 0:00:09]} 31. g4 {[%emt 0:05:40][%cal Of4f5]} Kf7 {[%emt 0:01:00]} 32. Rd6 {[%emt 0:00:31] [#]} (32. Re5 $17) 32... Rc7 $1 $19 {[%emt 0:00:52]} 33. g5 {[%emt 0:00:52]} Nd5 {[%emt 0:02:18]} 34. a3 {[%emt 0:00:02]} Nb6 {[%emt 0:01:21]} (34... Nxf4 $19 35. Re4 Nd5) 35. Re5 $17 {[%emt 0:01:13]} Nc4 {[%emt 0:00:28]} 36. Rc5 {[%emt 0:00:02] [#]} Rb7 {[%emt 0:02:37]} ({But not} 36... Rxc5 37. Rxd7+ Ke8 38. Rxh7 $11) 37. Rd3 {[%emt 0:00:03][%cal Oa3a4]} Nb6 {[%emt 0:00:43]} 38. Rd4 {[%emt 0:01:49]} Ke7 {[%emt 0:03:04]} 39. Kd1 {[%emt 0:00:36]} (39. Re4 $17) 39... Nc4 $19 {[%emt 0:02:12]} 40. Ke2 {[%emt 0:00:31][%cal Oa3a4]} Nxa3 {[%emt 0:00:20]} 41. Rd1 {[%emt 0:06:10]} Nc4 {[%emt 0:00:30][%cal Ba3c4,Bc4b6,Bb6d5][%mdl 32]} 42. Ra1 {[%emt 0:00:28]} (42. Rd4 $142) 42... Nb6 {[%emt 0:37:18]} 43. Ra6 {[%emt 0:02:08]} (43. Kd2 $142) 43... Nd5 {[%emt 0:00:00] Black used his chance.   Weighted Error Value: White=0.34/Black=0.26 (precise) .  Loses game:     	---       	Black=1      Missed win:     	White=1     	---        Mistake:       	White=7     	Black=6      Inaccurate:     	---       	Black=3      OK:         	White=12    	Black=14     Best:        	White=3     	Black=7      Strong:       	White=1     	---        Brilliant:      	White=2     	Black=1} 0-1

[Event "BL 2024-25"]
[Site "Austria"]
[Date "2024.10.09"]
[Round "1.11"]
[White "Perunovic, Milos"]
[Black "Schernthaner, David"]
[Result "1/2-1/2"]
[ECO "B95"]
[WhiteElo "2525"]
[BlackElo "2389"]
[Annotator "TA"]
[PlyCount "44"]
[EventDate "2024.08.28"]
[EventType "team-tourn"]
[EventCountry "AUT"]
[SourceTitle "playchess.com"]
[Source "ChessBase"]
[SourceQuality "1"]
[WhiteTeam "Pinggau-Friedberg"]
[BlackTeam "Fuerstenfeld-Hartberg"]
[TimeControl "40/5400+30:1800+30"]

{[%evp 15,44,0,0,-17,0,0,0,0,1,0,0,0,0,0,0,-14,31,0,42,-12,27,33,58,0,0,0,27,0,0,0,25]} 1. e4 {[%emt 0:00:25]} c5 {[%emt 0:00:31]} 2. Nf3 {[%emt 0:00:39]} d6 {[%emt 0:00:05]} 3. d4 {[%emt 0:00:50]} cxd4 {[%emt 0:00:06]} 4. Nxd4 {[%emt 0:00:08]} Nf6 {[%emt 0:00:05]} 5. Nc3 {[%emt 0:00:26]} a6 {[%emt 0:00:06]} 6. Bg5 {[%emt 0:04:57]} e6 {[%emt 0:01:19]} 7. Qf3 {[%emt 0:00:48]} Nbd7 {[%emt 0:08:50]} 8. O-O-O {[%emt 0:01:14]} Qc7 {[%emt 0:01:18]} 9. Kb1 {[%emt 0:02:42]} Be7 {[%emt 0:08:10]} 10. g4 {[%emt 0:13:57][%cal Bg2g4,Bg4g5][%mdl 32]} b5 {[%emt 0:13:48][%cal Bb7b5,Bb5b4][%mdl 32]} 11. Bxf6 {[%emt 0:12:19]} Nxf6 {[%emt 0:08:54]} 12. g5 {[%emt 0:02:08]} Nd7 {[%emt 0:00:09][%cal Ob5b4,Bf6d7,Bd7c5,Bc5a4][%mdl 32]} 13. h4 {[%emt 0:12:36]} b4 {[%emt 0:04:37]} 14. Nce2 {[%emt 0:02:35]} Bb7 {[%emt 0:01:49]} 15. Ng3 {[%emt 0:05:14]} Rc8 {[%emt 0:09:14]} 16. Bh3 {[%emt 0:04:15]} Nc5 {[%emt 0:07:34]} 17. Rhe1 {[%emt 0:04:32]} ({White should try} 17. Qe3 $14) 17... O-O {[%emt 0:02:22]} 18. Qe3 {[%emt 0:02:37]} Na4 {[%emt 0:06:34]} 19. Qb3 {Inhibits d5.} Nc5 {[%emt 0:00:30]} 20. Qe3 Na4 {[%emt 0:00:30]} 21. Qb3 Nc5 {[%emt 0:00:30]} 22. Qe3 Na4 {[%emt 0:00:30] Weighted Error Value: White=0.15 (very precise) /Black=0.15 (very precise) .  Mistake:       	White=1     	---        Inaccurate:     	White=1     	Black=3      OK:         	White=7     	Black=8} 1/2-1/2

[Event "BL 2024-25"]
[Site "Austria"]
[Date "2024.10.09"]
[Round "1.12"]
[White "Freitag, Manfred"]
[Black "Ivanisevic, Ivan"]
[Result "0-1"]
[ECO "C64"]
[WhiteElo "2340"]
[BlackElo "2519"]
[Annotator "TA"]
[PlyCount "50"]
[EventDate "2024.08.28"]
[EventType "team-tourn"]
[EventCountry "AUT"]
[SourceTitle "playchess.com"]
[Source "ChessBase"]
[SourceQuality "1"]
[WhiteTeam "Fuerstenfeld-Hartberg"]
[BlackTeam "Pinggau-Friedberg"]
[TimeControl "40/5400+30:1800+30"]

{[%evp 10,50,42,33,27,36,29,41,30,24,43,0,0,0,0,2,-16,-18,0,-6,-9,-27,-4,-75,-59,-89,-125,-300,-298,-306,-213,-322,-304,-511,-502,-614,-627,-814,-831,-837,-851,-833,-732]} 1. e4 e5 {[%emt 1:31:00]} 2. Nf3 Nc6 {[%emt 0:00:30]} 3. Bb5 a6 {[%emt 0:00:30]} 4. Ba4 Bc5 {[%emt 0:00:30]} 5. c3 Nge7 {[%emt 0:00:30]} 6. O-O Ba7 {[%emt 0:00:30]} 7. d4 Ng6 {[%emt 0:00:30]} 8. Bg5 f6 {[%emt 0:00:30] White is slightly better.} 9. Be3 O-O {[%emt 0:00:30]} 10. d5 Nce7 {[%emt 0:00:30]} 11. d6 cxd6 {[%emt 0:00:30]} 12. Bxa7 Rxa7 {[%emt 0:00:30]} 13. Qxd6 b5 {[%emt 0:00:30]} 14. Bb3+ Kh8 {[%emt 0:00:30]} 15. a4 Rb7 {[%emt 0:00:30]} 16. Na3 (16. Qxa6 Nc6 17. axb5 Ra7 18. Qxa7 Nxa7 19. Rxa7 Qb6 $15) (16. Nbd2 $11 {remains equal.}) 16... Rb6 $17 {[%emt 0:00:30]} 17. Qd2 f5 {[%emt 0:00:30]} 18. Rad1 $2 {Now White is beyond hope.} (18. Ng5 $17 fxe4 19. Nf7+ Rxf7 20. Bxf7) 18... fxe4 $19 {[%emt 0:00:30]} 19. Ng5 {[%cal Og5e6]} d5 {[%emt 0:00:30] White must now prevent ...Nf4.} 20. Nxe4 {[#]} (20. a5 {was forced.} Rc6 21. Nxe4 (21. Bxd5 $2 {is the wrong capture.} Rd6 $19)) 20... Nf4 $1 {[%emt 0:00:30]} 21. Rfe1 $2 {White is weak on the light squares} (21. f3 {keeps fighting.}) 21... Rh6 {[%emt 0:00:30] Black is clearly winning.} 22. Qe3 bxa4 {[%emt 0:00:30]} 23. Ba2 Bg4 {[%emt 0:00:30]} 24. Ng3 Bxd1 {[%emt 0:00:30]} 25. Rxd1 Neg6 {[%emt 0:00:30] Weighted Error Value: White=0.64/Black=0.06 (flawless) .  Loses game:     	White=1     	---        Mistake:       	White=3     	---        Inaccurate:     	White=2     	Black=1      OK:         	White=7     	Black=7      Best:        	---       	Black=4      Strong:       	---       	Black=1} 0-1